[Event "Romanian Championship 2024"]
[Site "Eforie Nord"]
[Date "2024.02.29"]
[Round "7.12"]
[White "Melinte, Rares-Andrei"]
[Black "David, Alexandru-Vasile"]
[Result "1/2-1/2"]
[ECO "E01"]
[WhiteElo "1989"]
[BlackElo "2360"]
[Annotator "TA"]
[PlyCount "145"]
[EventDate "2024.02.24"]
[EventType "swiss"]
[EventCountry "ROU"]
[SourceTitle "playchess.com"]
[Source "ChessBase"]
[SourceQuality "1"]
[TimeControl "40/5400+30:900+30"]

{[%evp 9,145,36,35,30,37,35,41,0,0,3,0,0,-3,-67,-48,-76,-66,-104,-101,-96,-80,-97,-113,-137,-139,-131,-135,-212,-205,-207,-156,-159,-133,-118,-81,-60,0,-79,-95,-74,0,-138,-156,-136,-145,-144,-24,-23,0,-18,-22,-23,-3,0,-6,-9,0,0,0,0,0,-55,-48,-48,-55,-52,-52,-49,-8,-8,-6,-6,0,0,0,0,0,0,0,-13,0,0,0,0,0,0,0,0,0,0,0,0,0,0,0,0,0,0,0,0,0,0,0,0,0,0,0,0,0,0,0,0,0,0,0,0,-73,-79,0,0,0,0,0,0,0,0,0,0,0,0,0,-29985,0,0,0,0,0,0]} 1. d4 {[%emt 0:00:03]} d5 {[%emt 0:03:35]} 2. c4 {[%emt 0:00:07]} e6 {[%emt 0:00:06]} 3. Nf3 {[%emt 0:00:06]} Nf6 {[%emt 0:00:06]} 4. g3 {[%emt 0:00:07]} h6 {[%emt 0:00:08]} 5. Bg2 {[%emt 0:00:36]} Bd6 {[%emt 0:00:09]} 6. Nc3 {[%emt 0:01:27]} Nc6 {[%emt 0:00:55]} 7. O-O {[%emt 0:05:19]} O-O {[%emt 0:00:10]} 8. c5 {[%emt 0:02:29] Weiß steht etwas besser.} Be7 {[%emt 0:00:09]} 9. Rb1 {[%emt 0:01:25]} Ne4 {[%emt 0:01:05] Wehrt b4 ab} 10. Ne1 {[%emt 0:06:00]} f5 {[%emt 0:08:50]} 11. e3 {[%emt 0:11:38]} (11. Na4 $11) 11... b6 $15 {[%emt 0:02:26]} 12. Nxe4 {[%emt 0:03:51]} fxe4 {[%emt 0:00:54]} 13. b4 {[%emt 0:01:16]} bxc5 $1 {[%emt 0:03:11]} 14. dxc5 {[%emt 0:00:33]} Rb8 {[%emt 0:09:26]} 15. b5 {[%emt 0:23:58]} a6 {[%emt 0:00:17]} (15... Bxc5 16. Qc2 Qd6 17. bxc6 Rxb1 18. Qxb1 $15) 16. f3 {[%emt 0:02:04]} exf3 {[%emt 0:05:30]} (16... Bxc5 17. Qc2 (17. fxe4 Rxf1+ 18. Bxf1 axb5 $15) 17... Nb4 18. Qxc5 $14) 17. Nxf3 {[%emt 0:00:27]} axb5 {[%emt 0:00:08]} (17... Bxc5 $2 {geht unter.} 18. Qc2 Nb4 19. Qxc5 $18) 18. Bb2 {[%emt 0:05:27]} (18. Nd4 $17 Bd7 19. Qc2) 18... Bxc5 $19 {[%emt 0:07:54]} 19. Qd3 {[%emt 0:02:14]} Qe7 {[%emt 0:06:09]} 20. Rbc1 {[%emt 0:11:28]} Nb4 {[%emt 0:11:34]} 21. Qb3 {[%emt 0:01:09]} Na6 {[%emt 0:01:05]} 22. Ne5 {[%emt 0:02:34]} Qg5 {[%emt 0:05:05]} (22... Bd7 $15 23. Rxf8+ Rxf8) 23. Rxf8+ {[%emt 0:02:28]} (23. Bd4 $1 $11) 23... Bxf8 $17 {[%emt 0:00:06]} 24. Rf1 {[%emt 0:03:50]} Bb7 {[%emt 0:05:29]} (24... Nc5 $17 25. Qc3 Bd6) 25. Qxb5 {[%emt 0:03:10]} (25. Bd4 $11 {bleibt in der Remisbreite.} c5 26. Nf7) 25... Qxe3+ {[%emt 0:03:23]} 26. Kh1 {[%emt 0:00:03]} Nc5 {[%emt 0:00:06] Pariert Qd7. ...Ne4 ist eine echte Drohung.} 27. Nd7 {[%emt 0:06:20] [#]} Nxd7 {[%emt 0:11:57]} (27... Ba6 $1 $17 {[%cal Ra6b5]} 28. Rxf8+ (28. Qxb8 $2 {zu gefräßig.} Nxd7 29. Qb3 Qxb3 $19) 28... Rxf8 29. Qxc5 Qxc5 30. Nxc5 Rb8) 28. Qxd7 $11 {[%emt 0:00:05]} d4 {[%emt 0:00:04] Droht stark ...Bxg2+.} 29. Bxd4 {[%emt 0:02:08]} (29. Bxb7 $5 Rxb7 30. Rxf8+ Kxf8 31. Qc8+ Kf7 32. Qxb7 $11) 29... Bxg2+ {[%emt 0:03:21]} 30. Kxg2 {[%emt 0:00:02]} Qe4+ {[%emt 0:00:07]} (30... Qe2+ $5 31. Rf2 Qe4+ 32. Kh3 Qg6 $15) 31. Kh3 {[%emt 0:02:05]} Qg6 {[%emt 0:02:37]} 32. Qxc7 {[%emt 0:00:27]} Qh5+ {[%emt 0:00:36]} 33. Kg2 {[%emt 0:00:14]} Qd5+ {[%emt 0:00:55]} 34. Kh3 {[%emt 0:01:12]} Ra8 {[%emt 0:00:20]} 35. Qe5 {[%emt 0:00:58]} (35. Qf7+ $11 Kh7 36. Qf3) 35... Qxe5 $15 {[%emt 0:01:49]} (35... Qxa2 36. Ra1 Qc4 37. Rxa8 $11) 36. Bxe5 {[%emt 0:00:06]} Rxa2 {[%emt 0:00:04][%mdl 4096] Endspiel. KRB-KRB} 37. Rc1 {[%emt 0:00:55]} Re2 {[%emt 0:00:21]} 38. Bd4 {[%emt 0:00:30]} e5 {[%emt 0:00:20]} 39. Bc5 {[%emt 0:00:17]} Bxc5 {[%emt 0:00:49]} 40. Rxc5 $11 {[%emt 0:00:00] KR-KR} Kf7 {[%emt 0:00:00]} 41. g4 {[%emt 0:01:33]} Kf6 {[%emt 0:02:39]} 42. Kg3 {[%emt 0:00:37]} Re3+ {[%emt 0:00:03]} 43. Kf2 {[%emt 0:00:35]} Re4 {[%emt 0:00:17]} 44. Kf3 {[%emt 0:00:26]} Rf4+ {[%emt 0:00:06]} 45. Kg3 {[%emt 0:00:13]} Ke6 {[%emt 0:00:26]} 46. h4 {[%emt 0:03:15]} Rf7 {[%emt 0:02:45]} 47. Ra5 {[%emt 0:01:09]} Rc7 {[%emt 0:01:11]} 48. h5 {[%emt 0:01:30]} Rc3+ {[%emt 0:02:24]} 49. Kf2 {[%emt 0:00:32]} Rc6 {[%emt 0:02:48]} 50. Kf3 {[%emt 0:01:08]} Kf6 {[%emt 0:00:05]} 51. Ra7 {[%emt 0:01:17]} Rc3+ {[%emt 0:02:13]} 52. Ke4 {[%emt 0:01:34]} Rc4+ {[%emt 0:01:45]} 53. Kf3 {[%emt 0:00:07]} Rb4 {[%emt 0:02:17]} 54. Ra6+ {[%emt 0:00:30]} Kg5 {[%emt 0:00:11]} 55. Rg6+ {[%emt 0:00:30]} Kh4 {[%emt 0:00:05] Droht ...Rf4+ und aus.} 56. Rxg7 {[%emt 0:00:34]} Rf4+ {[%emt 0:00:05]} 57. Ke3 {[%emt 0:02:42]} Rxg4 {[%emt 0:00:11]} 58. Re7 {[%emt 0:02:03]} Rg5 {[%emt 0:02:41]} 59. Ke4 {[%emt 0:00:08]} Rxh5 {[%emt 0:00:07] Weiss muss nun ...Rg5 beachten.} 60. Re6 {[%emt 0:03:26]} Kh3 {[%emt 0:00:38]} 61. Rg6 {[%emt 0:00:51]} Kh4 {[%emt 0:05:41]} 62. Ra6 {[%emt 0:00:13]} (62. Rg1 $11 {hält das Gleichgewicht.}) 62... Kg5 $17 {[%emt 0:00:42]} 63. Kxe5 {[%emt 0:01:30] [#]} Rh4 {[%emt 0:00:04]} ({Günstiger ist} 63... Rh3 $1 $17 {[%cal Rh3e3]}) 64. Ra8 $11 {[%emt 0:00:56]} Rb4 {[%emt 0:00:11]} 65. Rg8+ {[%emt 0:00:15]} Kh4 {[%emt 0:00:06]} 66. Rg1 {[%emt 0:00:20]} Rg4 {[%emt 0:00:24]} 67. Rf1 {[%emt 0:01:16]} h5 {[%emt 0:04:43]} 68. Kf5 {[%emt 0:00:15]} Rg3 {[%emt 0:00:18]} 69. Rh1+ {[%emt 0:00:37]} Rh3 {[%emt 0:00:06]} 70. Rxh3+ {[%emt 0:00:22]} Kxh3 {[%emt 0:00:09]} 71. Kf4 {[%emt 0:00:07][%cal Bf5f4,Bf4g5,Bg5h4][%mdl 32] Die Stellung ist ausgeglichen.} Kg2 {[%emt 0:00:06] ( -> ...h4)} (71... h4 $5 72. Kf3 $8 Kh2 $11) 72. Kg5 {[%emt 0:00:04]} h4 {[%emt 0:00:03]} 73. Kxh4 {[%emt 0:00:03] Gewichteter Fehlerwert: Weiß=0.18 (sehr präzise) /Schwarz=0.12 (sehr präzise) .  Gewinn verpasst:   	---       	Schwarz=1     Fehler:       	Weiß=6     	Schwarz=4     Ungenau:       	Weiß=3     	Schwarz=2     OK:         	Weiß=31    	Schwarz=14    Bester:       	Weiß=13    	Schwarz=4     Stark:        	---       	Schwarz=1} 1/2-1/2

[Event "Romanian Championship 2024"]
[Site "Eforie Nord"]
[Date "2024.02.29"]
[Round "7.13"]
[White "Maximov, Oleg"]
[Black "Antal, Hunor-Zoltan"]
[Result "1/2-1/2"]
[ECO "C00"]
[WhiteElo "2186"]
[BlackElo "2272"]
[Annotator "RC"]
[PlyCount "102"]
[EventDate "2024.02.24"]
[EventType "swiss"]
[EventCountry "ROU"]
[SourceTitle "playchess.com"]
[Source "ChessBase"]
[SourceQuality "1"]
[TimeControl "40/5400+30:900+30"]

1. e4 {[%emt 0:01:04]} c5 {[%emt 0:00:29]} 2. Nf3 {[%emt 0:00:07]} Nc6 {[%emt 0:00:25]} 3. d3 {[%emt 0:00:14]} e6 {[%emt 0:00:35]} 4. g3 {[%emt 0:00:09]} d5 {[%emt 0:00:08]} 5. Nbd2 {[%emt 0:00:05]} Nf6 {[%emt 0:00:04]} 6. Bg2 {[%emt 0:00:06]} Be7 {[%emt 0:00:05]} 7. O-O {[%emt 0:00:07]} b6 {[%emt 0:00:02]} 8. exd5 {[%emt 0:01:58]} Nxd5 {[%emt 0:00:25]} 9. Re1 {[%emt 0:00:17]} O-O {[%emt 0:00:24]} 10. Nc4 {[%emt 0:00:51]} Bb7 {[%emt 0:01:27]} 11. c3 {[%emt 0:03:03]} Bf6 {[%emt 0:00:45]} 12. a4 {[%emt 0:01:40]} Qc7 {[%emt 0:03:25]} 13. a5 {[%emt 0:03:15]} Ba6 {[%emt 0:06:04]} 14. axb6 {[%emt 0:04:45]} axb6 {[%emt 0:01:08]} 15. Bg5 {[%emt 0:01:17]} Rfd8 {[%emt 0:20:36]} 16. Bxf6 {[%emt 0:07:54]} Nxf6 {[%emt 0:00:31]} 17. Nfe5 {[%emt 0:07:33]} Nxe5 {[%emt 0:04:18]} 18. Nxe5 {[%emt 0:01:07]} Bb7 {[%emt 0:00:15]} 19. Rxa8 {[%emt 0:14:03]} Rxa8 {[%emt 0:00:06]} 20. Bxb7 {[%emt 0:00:17]} Qxb7 {[%emt 0:00:07]} 21. Qf3 {[%emt 0:00:10]} Qxf3 {[%emt 0:00:29]} 22. Nxf3 {[%emt 0:00:04]} Ra2 {[%emt 0:00:06]} 23. Rb1 {[%emt 0:01:26]} Nd5 {[%emt 0:00:22]} 24. d4 {[%emt 0:08:45]} c4 {[%emt 0:00:28]} 25. Nd2 {[%emt 0:00:06]} b5 {[%emt 0:00:40]} 26. Ne4 {[%emt 0:00:05]} Kf8 {[%emt 0:01:32]} 27. b3 {[%emt 0:01:27]} g5 {[%emt 0:12:08]} 28. bxc4 bxc4 {[%emt 0:00:08]} 29. Rb8+ {[%emt 0:02:14]} Kg7 {[%emt 0:00:07]} 30. Rc8 {[%emt 0:01:01]} Ra4 {[%emt 0:04:12]} 31. Kg2 {[%emt 0:07:57]} g4 {[%emt 0:00:38]} 32. Nd6 {[%emt 0:01:03]} Ra3 {[%emt 0:05:46]} 33. h3 {[%emt 0:10:23]} h5 {[%emt 0:01:30]} 34. hxg4 {[%emt 0:00:04]} hxg4 {[%emt 0:00:03]} 35. Rxc4 {[%emt 0:23:23]} f5 {[%emt 0:09:44]} 36. Rc5 {[%emt 0:00:00]} Nxc3 {[%emt 0:02:16]} 37. d5 {[%emt 0:00:00]} Nxd5 {[%emt 0:01:06]} 38. Nxf5+ {[%emt 0:00:00]} Kf6 {[%emt 0:00:52]} 39. Nd4 {[%emt 0:00:00]} Ke5 {[%emt 0:04:42]} 40. Rc4 {[%emt 0:00:00]} Ra2 {[%emt 0:00:00]} 41. Rc2 {[%emt 0:00:00]} Rxc2 {[%emt 0:02:34]} 42. Nxc2 {[%emt 0:00:00]} Ke4 {[%emt 0:00:03]} 43. Ne1 {[%emt 0:00:00]} e5 {[%emt 0:01:42]} 44. f3+ {[%emt 0:00:00]} Ke3 {[%emt 0:00:14]} 45. fxg4 {[%emt 0:00:00]} e4 {[%emt 0:00:26]} 46. Kf1 {[%emt 0:00:00]} Kd2 {[%emt 0:01:35]} 47. Ng2 {[%emt 0:00:00]} e3 {[%emt 0:00:09]} 48. Nxe3 {[%emt 0:00:00]} Nxe3+ {[%emt 0:00:03]} 49. Kf2 {[%emt 0:00:00]} Nxg4+ {[%emt 0:00:02]} 50. Kf3 {[%emt 0:00:00]} Ne3 {[%emt 0:00:13]} 51. g4 {[%emt 0:00:00]} Nxg4 {[%emt 0:00:03]} 1/2-1/2

[Event "Romanian Championship 2024"]
[Site "Eforie Nord"]
[Date "2024.02.29"]
[Round "7.14"]
[White "Bonte, Andrei-Mihai"]
[Black "Costescu, Mihnea-Constantin"]
[Result "1-0"]
[ECO "D27"]
[WhiteElo "2266"]
[BlackElo "1944"]
[Annotator "TA"]
[PlyCount "57"]
[EventDate "2024.02.24"]
[EventType "swiss"]
[EventCountry "ROU"]
[SourceTitle "playchess.com"]
[Source "ChessBase"]
[SourceQuality "1"]
[TimeControl "40/5400+30:900+30"]

{[%evp 17,57,16,31,18,56,47,62,60,65,60,71,38,64,20,109,110,154,95,96,93,96,97,112,107,101,98,153,155,160,168,156,157,996,983,792,785,1000,989,986,718,697,682]} 1. d4 {[%emt 0:01:32]} d5 {[%emt 0:00:07]} 2. c4 {[%emt 0:01:15]} dxc4 {[%emt 0:00:29]} 3. Nf3 {[%emt 0:00:29]} Nf6 {[%emt 0:00:23]} 4. e3 {[%emt 0:00:20]} e6 {[%emt 0:00:29]} 5. Bxc4 {[%emt 0:00:06]} c5 {[%emt 0:00:06]} 6. O-O {[%emt 0:00:15]} Nc6 {[%emt 0:00:24]} 7. dxc5 {[%emt 0:03:59]} Qxd1 {[%emt 0:01:12]} 8. Rxd1 {[%emt 0:00:01]} Bxc5 {[%emt 0:00:08]} 9. a3 {[%emt 0:00:24]} a6 {[%emt 0:02:41]} 10. b4 {[%emt 0:00:36]} Ba7 {[%emt 0:00:17]} 11. Bb2 {[%emt 0:00:34]} b5 {[%emt 0:01:53]} 12. Be2 {[%emt 0:05:27] White is slightly better.} Bb7 {[%emt 0:06:10]} 13. Nbd2 {[%emt 0:00:37]} O-O {[%emt 0:11:09]} 14. Nb3 {[%emt 0:14:15]} Rfd8 {[%emt 0:03:26]} 15. Rdc1 {[%emt 0:04:16]} Rd5 {[%emt 0:10:16]} (15... Ne4 $11) 16. Nfd2 $16 {[%emt 0:07:42] Strongly threatening Bxf6.} Nd8 {[%emt 0:27:56]} 17. Bf3 {[%emt 0:09:31]} (17. a4 $142) 17... Rd7 {[%emt 0:00:35]} 18. Bxf6 {[%emt 0:02:40]} gxf6 {[%emt 0:05:23]} 19. Ne4 {[%emt 0:00:08]} Bxe4 {[%emt 0:01:29]} 20. Bxe4 {[%emt 0:00:03]} Rb8 {[%emt 0:01:44]} 21. g4 {[%emt 0:06:24]} Nb7 {[%emt 0:03:35]} ({Black should try} 21... Rd6 22. Rc3 h6) 22. Rc6 {[%emt 0:00:29]} Nd6 {[%emt 0:05:30] [#]} 23. Rd1 $1 $36 {[%emt 0:01:33][%cal Ba1d1,Bd1d7,Bd7d6][%mdl 2080] Black is under strong pressure.} Rb6 {[%emt 0:00:20]} 24. Nc5 {[%emt 0:08:22][%csl LRa6,LRd7] White has more active pieces.} Nxe4 $2 {[%emt 0:03:37] Loses the game.} (24... Rd8 $16 25. Nxa6 Kg7) 25. Rc8+ $18 {[%emt 0:00:22] White is clearly winning.} Kg7 {[%emt 0:01:23]} 26. Rxd7 {[%emt 0:00:09]} Nd6 {[%emt 0:02:25]} 27. Rcd8 {[%emt 0:00:11]} Bb8 {[%emt 0:00:44] [#]} 28. Rxb8 $1 {[%emt 0:00:21][%mdl 512]} Rxb8 {[%emt 0:00:08]} 29. Rxd6 {[%emt 0:00:06] Weighted Error Value: White=0.12 (very precise) /Black=0.29 (precise) .  Loses game:     	---       	Black=1      Mistake:       	White=1     	Black=2      Inaccurate:     	White=2     	Black=3      OK:         	White=8     	Black=5      Best:        	White=1     	Black=1      Strong:       	White=1     	---} 1-0

[Event "Romanian Championship 2024"]
[Site "Eforie Nord"]
[Date "2024.02.29"]
[Round "7.15"]
[White "Ciorgovean, Iustin"]
[Black "Prelipcean, Eric-Matei"]
[Result "1-0"]
[ECO "E32"]
[WhiteElo "2310"]
[BlackElo "2103"]
[Annotator "TA"]
[PlyCount "71"]
[EventDate "2024.02.24"]
[EventType "swiss"]
[EventCountry "ROU"]
[SourceTitle "playchess.com"]
[Source "ChessBase"]
[SourceQuality "1"]
[TimeControl "40/5400+30:900+30"]

{[%evp 9,71,20,10,14,35,35,38,37,69,68,87,55,67,67,68,46,63,54,60,51,43,49,47,40,43,39,43,31,31,28,88,85,87,74,169,131,123,122,227,185,215,207,206,160,158,143,157,137,137,136,137,125,129,132,142,132,132,100,175,105,404,405,1022,1006]} 1. d4 {[%emt 0:00:03]} Nf6 {[%emt 0:03:18]} 2. c4 {[%emt 0:00:08]} e6 {[%emt 0:00:27]} 3. Nc3 {[%emt 0:00:05]} Bb4 {[%emt 0:00:15]} 4. Qc2 {[%emt 0:00:06]} d6 {[%emt 0:00:39]} 5. e3 {[%emt 0:00:25]} O-O {[%emt 0:01:16]} 6. Bd3 {[%emt 0:01:30]} Nbd7 {[%emt 0:01:11]} 7. Nge2 {[%emt 0:00:33]} c5 {[%emt 0:01:42]} 8. O-O {[%emt 0:01:01] White is slightly better.} Bxc3 {[%emt 0:04:11]} 9. Nxc3 {[%emt 0:04:37]} Qe7 {[%emt 0:03:33]} 10. Bd2 {[%emt 0:07:07][%cal Ob2b4]} b6 {[%emt 0:01:05][%cal Bb7b6,Bb6b5,Bb5b4][%mdl 32]} 11. d5 {[%emt 0:06:17] White is more active.} Ne5 {[%emt 0:03:40]} 12. Be2 {[%emt 0:00:32]} Ba6 {[%emt 0:02:46]} 13. Qa4 {[%emt 0:02:08]} Bb7 {[%emt 0:04:52]} 14. e4 {[%emt 0:01:59]} a6 {[%emt 0:04:09][%cal Ob6b5]} 15. Qc2 {[%emt 0:04:05]} b5 {[%emt 0:07:10]} 16. b3 {[%emt 0:05:11]} b4 {[%emt 0:13:11]} 17. Na4 exd5 {[%emt 0:04:18]} 18. exd5 {[%emt 0:06:57]} Ng6 {[%emt 0:00:55]} 19. Rfe1 {[%emt 0:11:06]} Qe4 {[%emt 0:02:14]} (19... Rae8 $11 {keeps the balance.}) 20. Qxe4 $16 {[%emt 0:02:50]} Nxe4 {[%emt 0:00:07]} 21. Be3 {[%emt 0:00:04]} Rae8 {[%emt 0:02:11]} (21... a5 $16) 22. Bd3 {[%emt 0:02:45]} f5 {[%emt 0:09:23][%cal Bf7f5,Bf5f4][%mdl 32]} 23. f3 {[%emt 0:00:48]} Nf6 {[%emt 0:00:11]} (23... Ne5 $16) 24. Bd2 {[%emt 0:16:42]} Rxe1+ {[%emt 0:19:06]} 25. Rxe1 {[%emt 0:00:12]} (25. Bxe1 $6 Nd7 $16) 25... Nh5 {[%emt 0:00:10]} 26. Bc2 {[%emt 0:01:54]} f4 {[%emt 0:01:49]} 27. Kf2 {[%emt 0:06:33]} Rf7 {[%emt 0:03:18]} 28. Bc1 {[%emt 0:01:39]} Re7 {[%emt 0:01:36]} 29. Rh1 {[%emt 0:06:20]} Ne5 {[%emt 0:02:19]} 30. g4 {[%emt 0:00:36]} fxg3+ {[%emt 0:00:05]} 31. hxg3 {[%emt 0:00:05][%cal Bh2g3,Bg3g4,Bg4g5][%mdl 32]} g6 {[%emt 0:00:20]} 32. g4 {[%emt 0:01:43]} Nf6 {[%emt 0:00:08]} 33. Bb2 {[%emt 0:02:41]} Rf7 {[%emt 0:00:40] [#]} (33... Ned7 $16 34. Bc1 Ne5) 34. Kg3 {[%emt 0:01:16]} (34. Bxe5 Nxg4+ 35. Kg3 Nxe5 $17) (34. Re1 $1 $18) 34... Nxf3 $2 {[%emt 0:01:14][%mdl 8192] [#]} 35. Bxf6 $1 $18 {[%emt 0:01:34]} ({And not} 35. Kxf3 Nxd5+ 36. Kg3 Ne3 $19) 35... Nd2 {[%emt 0:02:11]} (35... Rxf6 $142 36. Rf1 h5 37. gxh5 (37. Rxf3 Kg7 $18) 37... gxh5 38. Rxf3 h4+ 39. Kf2 (39. Kxh4 $2 {perishes.} Rxf3 40. Bg6 Kf8 $19) 39... Kg7) 36. g5 {[%emt 0:00:16] Weighted Error Value: White=0.12 (very precise) /Black=0.27 (precise) .  Loses game:     	---       	Black=1      Mistake:       	White=1     	Black=5      Inaccurate:     	White=1     	Black=1      OK:         	White=8     	Black=12     Best:        	White=1     	Black=1      Strong:       	White=1     	---} 1-0

[Event "Romanian Championship 2024"]
[Site "Eforie Nord"]
[Date "2024.02.29"]
[Round "7.16"]
[White "Voiteanu, Gabriel"]
[Black "Dodoi, Matei-Teodor"]
[Result "1-0"]
[ECO "D95"]
[WhiteElo "2151"]
[BlackElo "1947"]
[Annotator "RC"]
[PlyCount "77"]
[EventDate "2024.02.24"]
[EventType "swiss"]
[EventCountry "ROU"]
[SourceTitle "playchess.com"]
[Source "ChessBase"]
[SourceQuality "1"]
[TimeControl "40/5400+30:900+30"]

1. d4 {[%emt 0:00:01]} Nf6 {[%emt 0:00:11]} 2. c4 {[%emt 0:00:04]} g6 {[%emt 0:00:07]} 3. Nc3 {[%emt 0:00:08]} d5 {[%emt 0:00:08]} 4. Nf3 {[%emt 0:00:14]} Bg7 {[%emt 0:00:20]} 5. e3 {[%emt 0:00:06]} O-O {[%emt 0:00:25]} 6. Qb3 {[%emt 0:00:14]} e6 {[%emt 0:00:23]} 7. Bd2 {[%emt 0:00:43]} b6 {[%emt 0:00:56]} 8. cxd5 {[%emt 0:00:29]} exd5 {[%emt 0:00:10]} 9. Be2 {[%emt 0:01:01]} c5 {[%emt 0:02:44]} 10. dxc5 {[%emt 0:04:09]} bxc5 {[%emt 0:00:29]} 11. Na4 {[%emt 0:01:27]} Ne4 {[%emt 0:11:10]} 12. Rc1 {[%emt 0:03:27]} d4 {[%emt 0:12:24]} 13. Nxc5 {[%emt 0:03:19]} Nxd2 {[%emt 0:01:16]} 14. Nxd2 {[%emt 0:00:40]} dxe3 {[%emt 0:08:14]} 15. fxe3 {[%emt 0:03:21]} Nd7 {[%emt 0:02:27]} 16. Qd5 {[%emt 0:18:07]} Rb8 {[%emt 0:03:59]} 17. b3 {[%emt 0:03:42]} Qa5 {[%emt 0:08:18]} 18. O-O {[%emt 0:03:08]} Nxc5 {[%emt 0:04:54]} 19. Rxc5 {[%emt 0:00:55]} Qxa2 {[%emt 0:01:30]} 20. Rxf7 {[%emt 0:12:14]} Rxf7 {[%emt 0:04:20]} 21. Bc4 {[%emt 0:07:57]} Qa1+ {[%emt 0:18:13]} 22. Nf1 {[%emt 0:00:16]} Bb7 {[%emt 0:04:40]} 23. Qxf7+ {[%emt 0:03:11]} Kh8 {[%emt 0:00:06]} 24. Qc7 {[%emt 0:02:40]} Rf8 {[%emt 0:03:34]} 25. Qxb7 {[%emt 0:00:43]} Bd4 {[%emt 0:06:29]} 26. Rc8 {[%emt 0:00:48]} Bxe3+ {[%emt 0:00:18]} 27. Kh1 {[%emt 0:00:05]} Bc5 {[%emt 0:00:35]} 28. Rxf8+ {[%emt 0:04:27]} Bxf8 {[%emt 0:00:06]} 29. Qf7 {[%emt 0:00:31]} Qg7 {[%emt 0:00:10]} 30. Qd5 {[%emt 0:02:09]} Be7 {[%emt 0:00:48]} 31. g3 {[%emt 0:00:29]} Qf8 {[%emt 0:00:16]} 32. Kg2 {[%emt 0:00:24]} Kg7 {[%emt 0:00:13]} 33. Nd2 {[%emt 0:00:49]} Qf5 {[%emt 0:00:37]} 34. Qxf5 {[%emt 0:00:46]} gxf5 {[%emt 0:00:06]} 35. Kf3 {[%emt 0:00:11]} Kf6 {[%emt 0:00:09]} 36. Nf1 {[%emt 0:00:50]} Bd6 {[%emt 0:00:53]} 37. Ne3 {[%emt 0:00:36]} Kg5 {[%emt 0:00:10]} 38. Bd3 {[%emt 0:00:46]} f4 {[%emt 0:00:18]} 39. gxf4+ {[%emt 0:00:14]} 1-0

[Event "Romanian Championship 2024"]
[Site "Eforie Nord"]
[Date "2024.02.29"]
[Round "7.17"]
[White "Botea, David-Alexandru"]
[Black "Corbu, George-Alexandru"]
[Result "1-0"]
[ECO "A13"]
[WhiteElo "2081"]
[BlackElo "1902"]
[Annotator "NA RC"]
[PlyCount "81"]
[EventDate "2024.02.24"]
[EventType "swiss"]
[EventCountry "ROU"]
[SourceTitle "playchess.com"]
[Source "ChessBase"]
[SourceQuality "1"]
[TimeControl "40/5400+30:900+30"]

1. c4 {[%emt 0:00:18]} Nf6 {[%emt 0:00:17]} 2. Nf3 {[%emt 0:00:43]} e6 {[%emt 0:00:07]} 3. g3 {[%emt 0:00:18]} d5 {[%emt 0:00:05]} 4. Bg2 {[%emt 0:00:15]} dxc4 {[%emt 0:00:09]} 5. Qa4+ {[%emt 0:00:44]} Bd7 {[%emt 0:00:06]} 6. Qxc4 {[%emt 0:00:11]} c5 {[%emt 0:00:26]} 7. Ne5 {[%emt 0:12:56]} Qc8 {[%emt 0:00:06]} 8. Nxd7 {[%emt 0:01:08]} Nfxd7 {[%emt 0:02:04]} 9. b3 {[%emt 0:06:14]} Be7 {[%emt 0:08:42]} 10. Bb2 {[%emt 0:00:25]} O-O {[%emt 0:01:52]} 11. O-O {[%emt 0:00:43]} Nc6 {[%emt 0:02:43]} 12. d3 $11 {[%emt 0:19:37]} Rb8 {[%emt 0:07:18]} 13. Nd2 {[%emt 0:02:50]} Qc7 {[%emt 0:22:01]} 14. Rac1 {[%emt 0:08:55]} Rfc8 {[%emt 0:11:03]} 15. Nf3 {[%emt 0:07:30]} Nb4 {[%emt 0:08:01]} 16. a3 {[%emt 0:02:37]} Nd5 {[%emt 0:00:53]} 17. Qc2 {[%emt 0:06:17]} Qd8 {[%emt 0:08:41]} 18. Qb1 {[%emt 0:01:12]} b5 {[%emt 0:02:20]} 19. Qa1 {[%emt 0:03:34]} f6 {[%emt 0:01:18]} 20. Bh3 {[%emt 0:10:04]} Qb6 {[%emt 0:07:22]} 21. e4 {[%emt 0:03:17]} Nc7 {[%emt 0:00:05]} 22. d4 {[%emt 0:00:07]} Rd8 {[%emt 0:01:33]} 23. Qa2 {[%emt 0:09:32]} b4 {[%emt 0:03:42]} 24. a4 {[%emt 0:01:30]} Nf8 {[%emt 0:01:46]} 25. Qb1 {[%emt 0:01:20]} Na6 {[%emt 0:01:59]} 26. Rfd1 {[%emt 0:00:23]} cxd4 {[%emt 0:01:18]} 27. Bxd4 {[%emt 0:00:28]} Qb7 {[%emt 0:01:19]} 28. Be3 {[%emt 0:00:38]} Rxd1+ {[%emt 0:02:20]} 29. Rxd1 {[%emt 0:00:01]} Nc5 {[%emt 0:00:25]} 30. Rd4 {[%emt 0:00:23]} Qa6 {[%emt 0:01:54]} 31. Qc2 {[%emt 0:00:52]} Qa5 {[%emt 0:02:26]} 32. Rc4 {[%emt 0:00:27]} Nfd7 {[%emt 0:00:26]} 33. Bf4 {[%emt 0:00:55]} Re8 {[%emt 0:01:09]} 34. Nd4 {[%emt 0:00:30]} Qa6 {[%emt 0:00:09]} 35. Nxe6 {[%emt 0:00:30]} Qa5 {[%emt 0:01:19]} 36. Bc7 {[%emt 0:00:31]} Qa6 {[%emt 0:00:04]} 37. Nxc5 {[%emt 0:00:13]} Nxc5 {[%emt 0:00:19]} 38. Rxc5 {[%emt 0:00:17]} Bxc5 39. Qxc5 {[%emt 0:00:01]} Kh8 {[%emt 0:00:31]} 40. Bd7 {[%emt 0:02:04]} Rg8 41. Qb5 {[%emt 0:01:53]} 1-0